fUSD/lending_fUSD_20240327
["ID","MTS","AMOUNT","RATE_DAILY","PERIOD"]
[320766750,1711552145151,-201.17184422,0.00016577,2]
[320766751,1711552145172,-521.04289427,0.00016577,2]
[320766752,1711552145194,-441.45269536,0.00016578,2]
[320766753,1711552145217,-406.2273307,0.00016578,2]
[320766754,1711552145242,-1054.59333877,0.00016578,2]
[320766755,1711552145264,-534.84684711,0.00016579,2]
[320766756,1711552145286,-294.88193264,0.00016579,2]
[320766757,1711552145306,-205.23806172,0.0001658,2]
[320766758,1711552145327,-3148.33989645,0.00016581,2]
[320766759,1711552145348,-150.0,0.00016583,2]
[320766760,1711552145368,-377.25,0.00016678,2]
[320766761,1711552145390,-500.0,0.00016725,2]
[320766762,1711552145411,-385.2294793,0.00016828,2]
[320766763,1711552145432,-150.99,0.00016828,2]
[320766764,1711552145452,-23900.0,0.0001683,2]
[320766765,1711552145473,-645.15,0.0001683,2]
[320766766,1711552145497,-227.12067946,0.00016843,2]
[320766767,1711552148181,-772.87932054,0.00016843,2]
[320766768,1711552148204,-573.06,0.00016888,2]
[320766769,1711552148226,-500.0,0.00016888,2]
[320766770,1711552148254,-815.37,0.00016925,2]
[320766771,1711552148274,-250.0,0.00016964,2]
[320766772,1711552148297,-172.53,0.00017013,2]
[320766773,1711552148317,-1009.5,0.0001708,2]
[320766774,1711552148340,-783.65822838,0.00017082,2]
[320766775,1711552148361,-250.0,0.00017086,2]
[320766776,1711552148384,-160.0,0.00017086,2]
[320766777,1711552148407,-156.50786457,0.00017704,2]
[320766778,1711552148429,-1945.78952941,0.00017807,2]
[320766779,1711552148454,-692.37,0.00017807,2]
[320766780,1711552148473,-155.0,0.00017809,2]
[320766781,1711552148497,-1280.6,0.00017809,2]
[320766782,1711552148518,-1826.12,0.00017884,2]
[320766783,1711552148540,-2466.35892327,0.0001789,2]
[320766784,1711552148561,-15041.4004,0.00017894,2]
[320766785,1711552148583,-2354.61977538,0.00017897,2]
[320766786,1711552148603,-499.99,0.00017897,2]
[320766787,1711552148623,-1000.0,0.000179,2]
[320766788,1711552148643,-288.2626,0.000179,2]
[320766789,1711552148664,-1152.8504,0.000179,2]
[320766790,1711552148685,-3735.8087,0.000179,2]
[320766791,1711552148709,-176.79802236,0.000179,2]
[320766792,1711552148729,-7916.6467,0.000179,2]
[320766793,1711552148760,-16365.83818176,0.000179,2]
[320766794,1711552148781,-1511.44406078,0.000179,2]
[320766795,1711552148803,-9121.36445505,0.000179,2]
[320766796,1711552148824,-180.74364576,0.000179,2]
[320766797,1711552148844,-180.74364574,0.00017901,2]
[320766798,1711552148867,-195.30838005,0.00017901,2]
[320766799,1711552148889,-196.05670908,0.00017901,2]
[320766800,1711552148910,-180.74364574,0.00017901,2]
[320766801,1711552148931,-156.50786455,0.00017903,2]
[320766802,1711552148952,-2088.44,0.00017988,2]
[320766803,1711552148971,-2208.43614893,0.00017997,2]
[320766804,1711552148994,-41048.55279865,0.00018,2]
[320766806,1711552151134,-7015.568,0.00018,2]
[320766826,1711552232284,-205.23806172,0.00017097,2]
[320766829,1711552232295,-1054.59333877,0.00017098,2]
[320766831,1711552232308,-559.74494284,0.00017099,2]
[320766832,1711552232317,-288.93678563,0.00017899,2]
[320766833,1711552232326,-83.78835633,0.000179,2]
[320766834,1711552232353,-249.75031465,0.000179,2]
[320766835,1711552232362,-1610.979,0.000179,2]
[320766836,1711552232371,-176.79802235,0.00017901,2]
[320766837,1711552232380,-177.59415234,0.0001799,2]
[320766838,1711552232389,-348.34408699,0.00017998,2]
[320766839,1711552232399,-229.53442367,0.00017999,2]
[320766840,1711552232428,-290.64064108,0.00017999,2]
[320766841,1711552232437,-507.83678894,0.00017999,2]
[320766842,1711552232446,-200.74122027,0.00017999,2]
[320766843,1711552232455,-267.92805569,0.00017999,2]
[320766844,1711552232464,-2472.23768341,0.00018,2]
[320766845,1711552232475,-1385.7826449,0.00018,2]
[320766846,1711552232528,-1385.68913495,0.00018,2]
[320766847,1711552232590,-319.91350895,0.00018,2]
[320766879,1711552238379,-4171.93704129,0.00018,2]
[320766881,1711552238391,-1001.10337711,0.00018,2]
[320766883,1711552238470,-0.00910516,0.00018,2]
[320766884,1711552238523,-848985.41837345,0.00018,2]
[320766885,1711552238534,-155.0,0.00018,2]
[320766886,1711552238545,-525978.07600728,0.00018,2]
[320766887,1711552238555,-167.26760921,0.00018001,2]
[320766888,1711552238567,-338489.7729166,0.00018089,2]
[320766889,1711552238576,-156.50786455,0.00018101,2]
[320766890,1711552238586,-150.02,0.000182,2]
[320766891,1711552238595,-156.50786455,0.000183,2]
[320766892,1711552238605,-1000.0,0.00018949,2]
[320766893,1711552238616,-297.29902466,0.00019,2]
[320766894,1711552238627,-193.26387094,0.00019178,2]
[320766895,1711552238637,-815.37,0.00019189,2]
[320766896,1711552238646,-180.0,0.00019288,2]
[320766897,1711552238657,-151.46377871,0.000199,2]
[320766898,1711552238666,-151.46377866,0.000199,2]
[320766899,1711552238675,-155.0,0.00019998,2]
[320766900,1711552238684,-3045.64301195,0.0002,2]
[320766901,1711552238694,-155.0,0.0002,2]
[320766903,1711552238703,-2342.08393912,0.0002,2]
[320766905,1711552238712,-591.0994759,0.0002,2]
[320766907,1711552238721,-281.17758265,0.0002,2]
[320766909,1711552238730,-155.0,0.0002,2]
[320766911,1711552238739,-151.46377866,0.00020264,2]
[320766913,1711552238748,-1000.0,0.00021054,2]
[320766915,1711552238757,-5251.74,0.00021096,2]
[320766917,1711552238766,-830.0,0.00021096,2]
[320766919,1711552238776,-151.46377866,0.00021445,2]
[320766921,1711552238786,-815.37,0.00021453,2]
[320766923,1711552238796,-250.0,0.00021918,2]
[320766925,1711552238805,-780.88336166,0.00022,2]
[320766927,1711552238816,-16365.83818175,0.00022019,2]
[320766929,1711552238825,-9121.36445504,0.00022019,2]
[320766931,1711552238835,-151.46377866,0.00022626,2]
[320766933,1711552238844,-1511.44406077,0.00023117,2]
[320766935,1711552238853,-1000.0,0.0002316,2]
[320766937,1711552238862,-168.91,0.00023393,2]
[320766939,1711552238872,-1921.96437535,0.0002354,2]
[320766941,1711552238881,-645.15,0.00023562,2]
[320766943,1711552238890,-815.37,0.00023717,2]
[320766945,1711552238900,-151.46377866,0.00023808,2]
[320766947,1711552238910,-2486.60095031,0.0002415,2]
[320766949,1711552238919,-151.46377866,0.00024989,2]
[320766951,1711552238928,-155.0,0.00025,2]
[320766953,1711552238937,-2594.6177927,0.00025,2]
[320766955,1711552238946,-4885.83861892,0.00025,4]
[320766957,1711552238956,-1391.96,0.00025175,2]
[320766958,1711552238965,-1000.0,0.00025265,2]
[320766960,1711552238975,-441.01478668,0.00025459,2]
[320766962,1711552238988,-815.37,0.00025981,2]
[320766964,1711552238997,-16365.83818175,0.00026137,2]
[320766966,1711552239007,-9121.36445504,0.00026137,2]
[320766969,1711552239016,-151.46377866,0.00026171,2]
[320766970,1711552239026,-250.0,0.00027,3]
[320766972,1711552239036,-195.30838005,0.00027099,2]
[320766974,1711552239045,-151.46377866,0.00027352,2]
[320766976,1711552239054,-166.792827,0.00027397,2]
[320766978,1711552239066,-1530.93,0.00027397,2]
[320766980,1711552239075,-1354.02,0.000274,2]
[320766983,1711552239085,-1354.02,0.000274,2]
[320766985,1711552239094,-1354.02,0.000274,2]
[320766987,1711552239103,-1354.02,0.000274,2]
[320766989,1711552239112,-1354.02,0.000274,2]
[320766991,1711552239121,-1391.96,0.00027915,2]
[320766993,1711552239131,-1020.26297848,0.00028,10]
[320766994,1711552239141,-166.792827,0.00028219,14]
[320767013,1711552239311,-815.37,0.00028244,2]
[320767015,1711552239323,-1511.44406077,0.00028334,4]
[320767016,1711552239333,-439.10055266,0.000285,120]
[320767017,1711552239342,-151.46377866,0.00028533,2]
[320767018,1711552239351,-176.79802235,0.00028592,2]
[320767019,1711552239360,-314.0,0.000286,3]
[320767020,1711552239369,-160.0,0.00028641,120]
[320767021,1711552239378,-559.30829187,0.00029,2]
[320767022,1711552239389,-300.0,0.00029,3]
[320767023,1711552239399,-166.792827,0.00029041,14]
[320767024,1711552239408,-168.91,0.00029242,2]
[320767025,1711552239417,-151.46377866,0.00029715,2]
[320767026,1711552239426,-166.792827,0.00029863,14]
[320767027,1711552239435,-2633.36473626,0.0002999,2]
[320767028,1711552239444,-1502.04932574,0.0003,10]
[320767029,1711552239454,-16365.83818175,0.00030256,2]
[320767031,1711552239463,-9121.36445504,0.00030256,2]
[320767032,1711552239473,-815.37,0.00030508,2]
[320767034,1711552239482,-1391.96,0.00030654,2]
[320767036,1711552239491,-166.792827,0.00030685,14]
[320767038,1711552239501,-151.46377866,0.00030896,2]
[320767040,1711552239510,-350.0,0.00031,3]
[320767042,1711552239520,-166.792827,0.00031507,14]
[320767044,1711552239529,-234.62,0.00031644,2]
[320767046,1711552239539,-160.0,0.00031824,120]
[320767048,1711552239548,-151.46377866,0.00032077,2]
[320767050,1711552239557,-5251.74,0.00032329,2]
[320767052,1711552239569,-830.0,0.00032329,2]
[320767054,1711552239579,-166.792827,0.00032329,14]
[320767056,1711552239588,-844.74,0.00032548,15]
[320767058,1711552239597,-815.37,0.00032772,2]
[320767060,1711552239606,-2617.72,0.00032876,2]
[320767062,1711552239616,-2617.72,0.00032876,2]
[320767064,1711552239625,-2617.72,0.00032876,2]
[320767067,1711552239635,-2617.72,0.00032876,2]
[320767069,1711552239645,-2617.72,0.00032876,2]
[320767071,1711552239654,-2617.72,0.00032876,2]
[320767073,1711552239664,-2617.72,0.00032876,2]
[320767075,1711552239673,-2617.72,0.00032876,2]
[320767077,1711552239682,-2617.72,0.00032876,2]
[320767079,1711552239691,-2617.72,0.00032876,2]
[320767081,1711552239700,-2617.72,0.00032876,2]
[320767083,1711552239709,-2617.72,0.00032876,2]
[320767085,1711552239718,-2617.72,0.00032876,2]
[320767086,1711552239727,-2617.72,0.00032876,2]
[320767089,1711552239736,-2617.72,0.00032876,2]
[320767091,1711552239745,-2617.72,0.00032876,2]
[320767093,1711552239754,-2617.72,0.00032876,2]
[320767095,1711552239763,-2617.72,0.00032876,2]
[320767097,1711552239772,-2617.72,0.00032876,2]
[320767099,1711552239781,-2617.72,0.00032876,2]
[320767101,1711552239791,-2617.72,0.00032876,2]
[320767103,1711552239800,-2617.72,0.00032876,2]
[320767105,1711552239810,-2617.72,0.00032876,2]
[320767107,1711552239819,-2617.91458341,0.00032876,2]
[320767109,1711552239828,-320.09,0.00032877,2]
[320767111,1711552239837,-37513.83,0.00032877,2]
[320767113,1711552239846,-55898.32,0.00032877,2]
[320767115,1711552239858,-400.0,0.00033,3]
[320767117,1711552239867,-166.792827,0.00033151,14]
[320767119,1711552239876,-151.46377866,0.00033259,2]
[320767121,1711552239885,-1511.44406077,0.00033551,6]
[320767123,1711552239894,-2090.24580119,0.00033827,4]
[320767125,1711552239902,-1124.3629522,0.00033827,2]
[320767127,1711552239912,-5257.79720364,0.00033827,4]
[320767129,1711552239921,-644.17906747,0.00033828,4]
[320767130,1711552239930,-166.792827,0.00033973,14]
[320767132,1711552239939,-16365.83818175,0.00034375,2]
[320767134,1711552239949,-9121.36445504,0.00034375,2]
[320767137,1711552239959,-151.46377866,0.0003444,2]
[320767138,1711552239968,-332.81243064,0.00034499,4]
[320767141,1711552239977,-2586.28111784,0.00034499,4]
[320767143,1711552239987,-155.0,0.00034508,4]
[320767145,1711552239997,-266.29613244,0.00034508,2]
[320767147,1711552240007,-312.6689611,0.00034518,4]
[320767149,1711552240016,-532.02037147,0.00034518,4]
[320767151,1711552240025,-438.28883147,0.00034518,4]
[320767153,1711552240034,-155.62028313,0.00034518,4]
[320767156,1711552240043,-150.0,0.00034703,2]
[320767158,1711552240052,-166.792827,0.00034795,14]
[320767160,1711552240062,-1403.75618933,0.00035,2]
[320767162,1711552240071,-450.0,0.00035,3]
[320767164,1711552240080,-160.0,0.00035006,120]
[320767166,1711552240089,-815.37,0.00035036,2]
[320767168,1711552240099,-168.91,0.0003509,2]
[320767171,1711552240107,-440.00922096,0.00035188,7]
[320767174,1711552240117,-844.74,0.00035288,15]
[320767176,1711552240126,-150.0,0.00035616,2]
[320767179,1711552240136,-151.46377866,0.00035621,2]
[320767180,1711552240145,-234.62,0.00036164,2]
[320767183,1711552240157,-195.30838005,0.00036297,9]
[320767184,1711552240165,-158.38,0.00036438,2]
[320767186,1711552240174,-150.0,0.0003653,2]
[320767189,1711552240183,-151.46377866,0.00036803,2]
[320767192,1711552240193,-155.0,0.00037145,60]
[320767195,1711552240202,-156.97,0.00037231,2]
[320767198,1711552240211,-156.97,0.00037293,2]
[320767201,1711552240220,-815.37,0.000373,2]
[320767204,1711552240230,-156.97,0.00037355,2]
[320767207,1711552240241,-156.97,0.00037417,2]
[320767212,1711552240252,-150.0,0.00037443,2]
[320767215,1711552240262,-1385.30353908,0.00037591,2]
[320767217,1711552240271,-1431.8339725,0.00037664,2]
[320767219,1711552240280,-1385.30353908,0.00037822,2]
[320767222,1711552240290,-867.15561493,0.0003789,10]
[320767227,1711552240299,-1431.8339725,0.00037973,2]
[320767230,1711552240309,-151.46377866,0.00037984,2]
[320767232,1711552240319,-844.74,0.00038027,15]
[320767236,1711552240329,-1431.8339725,0.00038099,2]
[320767238,1711552240338,-1385.30353908,0.00038171,2]
[320767242,1711552240348,-160.0,0.00038188,120]
[320767245,1711552240357,-150.0,0.00038356,2]
[320767248,1711552240366,-585.01,0.00038356,2]
[320767251,1711552240375,-16365.83818175,0.00038493,2]
[320767254,1711552240383,-9121.36445504,0.00038493,2]
[320767255,1711552240393,-1431.8339725,0.00038507,2]
[320767259,1711552240402,-1385.30353908,0.00038546,2]
[320767263,1711552240411,-1431.8339725,0.00038635,2]
[320767265,1711552240421,-1511.44406077,0.00038769,9]
[320767269,1711552240430,-1385.30353908,0.00038816,2]
[320767271,1711552240440,-1000.0,0.00038904,120]
[320767273,1711552240449,-358.31897843,0.00038998,4]
[320767276,1711552240459,-304.74396851,0.00038998,4]
[320767281,1711552240468,-294.41620853,0.00038999,4]
[320767282,1711552240477,-500.0,0.00039,2]
[320767285,1711552240486,-200.0,0.00039,7]
[320767290,1711552240496,-1448.0,0.00039067,15]
[320767291,1711552240505,-374.0,0.0003907,15]
[320767295,1711552240515,-4076.0,0.0003907,15]
[320767298,1711552240525,-616.0,0.0003907,15]
[320767302,1711552240534,-1448.0,0.00039077,15]
[320767305,1711552240543,-374.0,0.0003908,15]
[320767308,1711552240553,-4076.0,0.0003908,15]
[320767311,1711552240562,-616.0,0.0003908,15]
[320767312,1711552240572,-1448.0,0.00039087,15]
[320767316,1711552240582,-374.0,0.0003909,15]
[320767318,1711552240591,-4076.0,0.0003909,15]
[320767321,1711552240600,-616.0,0.0003909,15]
[320767324,1711552240610,-160.93111356,0.00039098,4]
[320767329,1711552240619,-516.48520422,0.00039098,4]
[320767331,1711552240629,-171.86654162,0.00039098,4]
[320767335,1711552240639,-142111.06240532,0.00039099,10]
[320767336,1711552240648,-155.0,0.000391,2]
[320767340,1711552240658,-322.07704381,0.000391,4]
[320767344,1711552240668,-250.81,0.000391,7]
[320767347,1711552240677,-1317.68083,0.000391,2]
[320767350,1711552240687,-151.46377866,0.00039166,3]
[320767352,1711552240697,-4751.23148746,0.00039196,12]
[320767355,1711552240709,-2616.46736678,0.000392,2]
[320767359,1711552240718,-190.60760831,0.000392,2]
[320767362,1711552240728,-1052.05056584,0.000392,2]
[320767365,1711552240737,-375.50707309,0.000392,30]
[320767368,1711552240746,-735.50015245,0.000392,2]
[320767371,1711552240755,-221.90580249,0.00039258,2]
[320767374,1711552240764,-4553.9112608,0.00039263,4]
[320767377,1711552240773,-150.8,0.00039269,15]
[320767380,1711552240782,-150.7,0.00039269,15]
[320767383,1711552240791,-7465.0,0.00039269,15]
[320767386,1711552240801,-150.0,0.00039269,2]
[320767388,1711552240810,-150.5,0.00039279,15]
[320767391,1711552240821,-7465.0,0.00039279,15]
[320767393,1711552240831,-150.5,0.00039279,15]
[320767396,1711552240841,-176.79802235,0.00039282,2]
[320767399,1711552240851,-152.41,0.00039289,15]
[320767403,1711552240860,-150.5,0.00039289,15]
[320767406,1711552240869,-7465.0,0.00039289,15]
[320767410,1711552240879,-150.5,0.00039289,15]
[320767413,1711552240889,-254.22990956,0.00039294,2]
[320767416,1711552240898,-162.90498715,0.00039294,7]
[320767419,1711552240907,-18406.35868089,0.00039294,10]
[320767420,1711552240916,-189.36342,0.00039294,7]
[320767423,1711552240925,-155.64352977,0.00039294,2]
[320767426,1711552240934,-38633.56564132,0.00039294,7]
[320767429,1711552240944,-1678.62827505,0.00039294,2]
[320767432,1711552240954,-53811.09,0.00039294,15]
[320767435,1711552240964,-5828.94,0.00039294,15]
[320767437,1711552240973,-14221.5663645,0.00039294,2]
[320767439,1711552240983,-5957.0938346,0.00039294,2]
[320767441,1711552240993,-2311.9168322,0.00039294,2]
[320767444,1711552241004,-206.23384764,0.00039296,4]
[320767448,1711552241014,-297.91178615,0.00039296,4]
[320767451,1711552241024,-484.50959772,0.00039296,4]
[320767454,1711552241033,-8589.93,0.00039297,30]
[320767457,1711552241043,-54347.61893418,0.00039297,2]
[320767458,1711552241053,-172.60528352,0.00039298,4]
[320767461,1711552241065,-379.87467864,0.00039298,4]
[320767464,1711552241077,-3682.45644611,0.00039298,5]
[320767467,1711552241088,-4308.59065634,0.00039298,4]
[320767469,1711552241098,-155.0,0.00039298,4]
[320767471,1711552241108,-2341.79461688,0.00039298,4]
[320767474,1711552241118,-180.00963658,0.00039298,4]
[320767475,1711552241129,-235.80040189,0.00039298,4]
[320767477,1711552241139,-6781.11246429,0.00039298,4]
[320767479,1711552241149,-1619.62800064,0.00039298,4]
[320767482,1711552241159,-275.45080105,0.00039298,4]
[320767484,1711552241168,-1253.2239953,0.00039298,120]
[320767486,1711552241178,-155.89640745,0.00039298,4]
[320767488,1711552241188,-185.04466804,0.00039298,4]
[320767490,1711552241197,-163.35660237,0.00039298,4]
[320767492,1711552241207,-201.92471811,0.00039298,4]
[320767494,1711552241217,-156.00473049,0.00039298,4]
[320767496,1711552241228,-155.67280699,0.00039298,4]
[320767522,1711552241362,-163.39837991,0.00039298,4]
[320767525,1711552241384,-155.31653082,0.00039298,4]
[320767527,1711552241394,-203.42479998,0.00039298,4]
[320767529,1711552241404,-485.15795551,0.00039298,4]
[320767531,1711552241413,-1236.48384141,0.00039298,4]
[320767532,1711552241422,-215.9840558,0.00039298,4]
[320767535,1711552241431,-155.1637337,0.00039298,4]
[320767536,1711552241440,-309.12001729,0.00039298,4]
[320767538,1711552241450,-1896.30380434,0.00039298,4]
[320767541,1711552241460,-1397.78923504,0.00039299,30]
[320767543,1711552241469,-23961.78342516,0.00039299,4]
[320767545,1711552241479,-479.2356685,0.00039299,4]
[320767547,1711552241489,-265.96,0.000393,7]
[320767549,1711552241499,-1439302.26811155,0.000393,30]
[320767551,1711552241508,-1394.25374,0.000393,29]
[320767553,1711552241517,-1385.30353908,0.0003934,2]
[320767555,1711552241526,-1431.8339725,0.00039343,2]
[320767557,1711552241535,-400268.71377242,0.00039382,4]
[320767559,1711552241544,-799.21549566,0.00039382,90]
[320767561,1711552241553,-2000.0,0.00039382,2]
[320767563,1711552241564,-732.89,0.00039385,30]
[320767565,1711552241574,-1431.8339725,0.00039514,2]
[320767566,1711552241584,-815.37,0.00039564,2]
[320767569,1711552241594,-1385.30353908,0.00039724,2]
[320767571,1711552241604,-1431.83397253,0.00039757,2]
[320767573,1711552241614,-1385.30353911,0.00039774,2]
[320767574,1711552241624,-1902.0,0.0003986,30]
[320767576,1711552241633,-150.97,0.0003997,15]
[320767578,1711552241643,-164.71,0.0003997,15]
[320767580,1711552241652,-150.5,0.0003998,15]
[320767582,1711552241662,-150.5,0.0003998,15]
[320767585,1711552241671,-150.78,0.0003998,15]
[320767587,1711552241680,-150.5,0.0003999,15]
[320767588,1711552241690,-150.71,0.0003999,15]
[320767591,1711552241699,-150.5,0.0003999,15]
[320767593,1711552241708,-150.5,0.0003999,15]
[320767595,1711552241717,-150.73,0.0003999,15]
[320767597,1711552241727,-150.85,0.0003999,15]
[320767599,1711552241736,-150.92,0.0003999,15]
[320767600,1711552241746,-500.0,0.0004,120]
[320767602,1711552241756,-192.22165366,0.0004,2]
[320767605,1711552241766,-34183.02841058,0.0004,30]
[320767607,1711552241776,-165.3772374,0.0004,2]
[320767609,1711552241785,-150.0,0.00040183,2]
[320767611,1711552241794,-250.81,0.000402,7]
[320767613,1711552241803,-151.46377866,0.00040347,8]
[320767614,1711552241813,-265.96,0.000406,7]
[320767617,1711552241823,-234.62,0.00040685,2]
[320767619,1711552241833,-4751.23148744,0.00040755,14]
[320767621,1711552241842,-844.74,0.00040767,15]
[320767623,1711552241851,-500.0,0.00041,120]
[320767625,1711552241860,-6158.3479369,0.00041,4]
[320767627,1711552241869,-150.0,0.00041096,2]
[320767629,1711552241878,-183.0,0.00041096,2]
[320767631,1711552241888,-159.78,0.00041096,2]
[320767632,1711552241896,-1500.0,0.00041096,120]
[320767633,1711552241905,-151.46377866,0.00041528,12]
[320767634,1711552241914,-815.37,0.00041828,2]
[320767635,1711552241923,-250.81,0.000419,7]
[320767637,1711552241932,-500.0,0.00042,120]
[320767639,1711552241942,-208.0,0.00042,2]
[320767641,1711552241951,-265.96,0.000421,7]
[320767643,1711552241961,-4751.23148744,0.00042313,16]
[320767645,1711552241970,-585.01,0.00042466,2]
[320767647,1711552241979,-16365.83818175,0.00042612,2]
[320767650,1711552241989,-9121.36445504,0.00042612,2]
[320767652,1711552241998,-151.46377866,0.0004271,16]
[320767654,1711552242007,-500.0,0.00043,120]
[320767656,1711552242016,-250.81,0.000432,7]
[320767657,1711552242026,-400.0,0.00043204,120]
[320767659,1711552242035,-208.0,0.0004337,2]
[320767662,1711552242044,-265.96,0.000434,7]
[320767664,1711552242054,-844.74,0.00043507,15]
[320767666,1711552242063,-5251.74,0.00043562,2]
[320767668,1711552242073,-830.0,0.00043562,2]
[320767670,1711552242082,-4751.23148744,0.00043872,18]
[320767672,1711552242091,-151.46377866,0.00043891,21]
[320767674,1711552242101,-150.0,0.00043924,120]
[320767676,1711552242110,-1511.44406077,0.00043986,11]
[320767678,1711552242119,-815.37,0.00044092,2]
[320767679,1711552242128,-1317.68084,0.000441,2]
[320767682,1711552242142,-250.81,0.000446,7]
[320767683,1711552242151,-208.0,0.0004473,30]
[320767686,1711552242161,-328.95124766,0.00045,4]
[320767688,1711552242171,-2254.85592043,0.00045,10]
[320767689,1711552242180,-151.46377866,0.00045072,25]
[320767691,1711552242189,-234.62,0.00045205,2]
[320767693,1711552242198,-265.96,0.000454,7]
[320767695,1711552242207,-4751.23148744,0.00045431,20]
[320767697,1711552242217,-195.30838005,0.00045495,20]
[320767699,1711552242226,-150.0,0.00045589,10]
[320767701,1711552242236,-235.65,0.00045766,2]
[320767704,1711552242247,-150.0,0.00045952,120]
[320767705,1711552242257,-60000.0,0.00046,15]
[320767707,1711552242267,-10000.0,0.00046,14]
[320767709,1711552242277,-10000.0,0.00046,14]
[320767712,1711552242290,-208.0,0.0004609,30]
[320767716,1711552242314,-844.74,0.00046247,15]
[320767718,1711552242329,-151.46377866,0.00046254,30]
[320767721,1711552242348,-923.65,0.000463,2]
[320767724,1711552242366,-815.37,0.00046356,2]
[320767727,1711552242384,-4771.0,0.00046485,2]
[320767730,1711552242402,-2449.0,0.00046485,2]
[320767733,1711552242419,-10746.292,0.00046485,2]
[320767736,1711552242438,-5676.0,0.00046485,2]
[320767739,1711552242453,-1176.0,0.00046485,2]
[320767741,1711552242471,-1003.0,0.00046485,2]
[320767745,1711552242491,-250.81,0.000465,7]
[320767748,1711552242507,-585.01,0.00046575,2]
[320767749,1711552242521,-16365.83818175,0.00046731,2]
[320767750,1711552242540,-9121.36445504,0.00046731,2]
[320767751,1711552242555,-150.0,0.00046775,30]
[320767752,1711552242571,-265.96,0.000468,7]
[320767753,1711552242588,-150.0,0.00046802,120]
[320767754,1711552242603,-150.0,0.0004689,120]
[320767755,1711552242619,-10000.0,0.00046945,30]
[320767756,1711552242639,-4751.23148744,0.0004699,22]
[320767757,1711552242655,-10047.99708809,0.00047,90]
[320767758,1711552242670,-2616.46736677,0.0004705,2]
[320767759,1711552242685,-1052.05056584,0.0004705,2]
[320767760,1711552242700,-151.46377866,0.00047435,34]
[320767761,1711552242716,-208.0,0.0004746,30]
[320767762,1711552242731,-400.0,0.00047525,120]
[320767763,1711552242746,-250.81,0.000476,7]
[320767764,1711552242761,-500.0,0.0004774,90]
[320767765,1711552242776,-150.0,0.00047815,30]
[320767766,1711552242790,-541.82457157,0.00048,48]
[320767767,1711552242806,-265.96,0.000481,7]
[320767768,1711552242821,-453.098139,0.00048498,100]
[320767769,1711552242836,-4196.66935252,0.00048508,2]
[320767770,1711552242850,-4751.23148744,0.00048548,24]
[320767771,1711552242866,-151.46377866,0.00048616,39]
[320767772,1711552242880,-815.37,0.00048619,2]
[320767773,1711552242895,-1111.0,0.000487,4]
[320767774,1711552242910,-19833.06170046,0.000487,2]
[320767775,1711552242926,-4356.44014135,0.000487,117]
[320767776,1711552242941,-1010.0,0.000487,117]
[320767777,1711552242955,-1217.69402529,0.00048796,4]
[320767778,1711552242971,-190.57620764,0.00048796,4]
[320767779,1711552242987,-415.24984837,0.00048796,30]
[320767781,1711552243001,-27411.09554097,0.00048798,10]
[320767783,1711552243017,-453.098139,0.00048798,101]
[320767784,1711552243033,-159.82797874,0.0004882,4]
[320767785,1711552243048,-208.0,0.0004882,30]
[320767786,1711552243064,-150.0,0.00048854,30]
[320767787,1711552243079,-95933.16836132,0.0004888,2]
[320767788,1711552243094,-250.81,0.000489,7]
[320767789,1711552243109,-844.74,0.00048986,15]
[320767790,1711552243123,-450.0,0.00049,50]
[320767791,1711552243139,-3303.34437691,0.00049,2]
[320767792,1711552243153,-629.15355604,0.00049,2]
[320767793,1711552243168,-13930.11101579,0.00049,30]
[320767794,1711552243183,-1317.68084,0.000491,2]
[320767795,1711552243197,-1511.44406077,0.00049203,14]
[320767798,1711552243212,-579.0,0.000493,2]